bitfinex-derivatives/quotes_BTCF0:USTF0_20250822
["timestamp","ask_amount","ask_price","bid_price","bid_amount"]
[1755875688372,1.9815155,116730.0,116720.0,0.34407914]
[1755875688560,1.9815155,116730.0,116720.0,0.77891914]
[1755875688762,1.9815155,116730.0,116710.0,0.05993317]
[1755875688763,0.0856746,116720.0,116710.0,0.05993317]
[1755875689066,2.5922429,116720.0,116710.0,0.05993317]
[1755875689567,2.5930429,116720.0,116710.0,0.05993317]
[1755875689770,0.5599419,116710.0,116700.0,0.0173234]
[1755875689974,1.6905702,116710.0,116700.0,0.0173234]
[1755875690465,1.6905702,116710.0,116700.0,0.09178102]
[1755875690670,1.6905702,116710.0,116700.0,0.0173234]
[1755875690968,1.6897702,116710.0,116700.0,0.0173234]
[1755875691173,0.5569492,116700.0,116690.0,0.41393249]
[1755875691375,1.4575092,116700.0,116690.0,0.34702]
[1755875691574,1.37182,116700.0,116690.0,0.70782]
[1755875691872,0.5571492,116700.0,116690.0,0.70782]
[1755875692270,0.5561492,116700.0,116690.0,0.70782]
[1755875692771,0.2090392,116700.0,116690.0,1.04963]
[1755875693175,0.12335,116700.0,116690.0,1.04963]
[1755875693578,0.0002,116700.0,116690.0,1.05043]
[1755875694071,0.0002,116700.0,116690.0,1.04963]
[1755875694268,0.0858892,116700.0,116690.0,0.79963]
[1755875694463,0.2491192,116700.0,116690.0,0.79963]
[1755875694874,0.2100392,116700.0,116690.0,0.79963]
[1755875695074,0.2100392,116700.0,116690.0,0.86813972]
[1755875695270,0.3732692,116700.0,116690.0,0.86813972]
[1755875695761,0.9177475,116700.0,116690.0,1.02632972]
[1755875695965,0.5601492,116700.0,116690.0,1.10078734]
[1755875696175,0.5621492,116700.0,116690.0,1.10078734]
[1755875696473,0.5621492,116700.0,116690.0,1.10178734]
[1755875696969,0.5621492,116700.0,116690.0,1.10078734]
[1755875697473,0.5621492,116700.0,116690.0,0.66552972]
[1755875697662,1.0829775,116700.0,116690.0,0.66552972]
[1755875698472,0.5621492,116700.0,116690.0,0.66552972]
[1755875698773,1.0829775,116700.0,116690.0,0.66552972]
[1755875699369,1.0829775,116700.0,116690.0,0.42545972]
[1755875699774,0.5621492,116700.0,116690.0,0.65138116]
[1755875699978,0.5621492,116700.0,116690.0,0.72542116]
[1755875700178,1.0829775,116700.0,116690.0,0.72542116]
[1755875700369,1.0829775,116700.0,116690.0,1.02632972]
[1755875700565,0.5621492,116700.0,116690.0,1.08621699]
[1755875700873,0.4912492,116700.0,116690.0,1.17902699]
[1755875701077,0.3989192,116700.0,116690.0,0.81822848]
[1755875701269,0.5621492,116700.0,116690.0,0.81822848]
[1755875701465,0.5621492,116700.0,116690.0,1.17902848]
[1755875701775,1.0829775,116700.0,116690.0,0.72541848]
[1755875701978,1.3329775,116700.0,116690.0,0.40137848]
[1755875702181,1.3337775,116700.0,116690.0,0.06850972]
[1755875702478,1.6945775,116700.0,116690.0,0.05987814]
[1755875702670,0.0857039,116680.0,116670.0,0.24048762]
[1755875702871,0.5599712,116670.0,116660.0,0.18140762]
[1755875703076,1.4417995,116670.0,116660.0,0.18140762]
[1755875703272,1.4417995,116670.0,116650.0,0.14849762]
[1755875703273,0.0857187,116660.0,116650.0,0.14849762]
[1755875703478,0.5601787,116660.0,116650.0,0.78227762]
[1755875703669,0.12435,116660.0,116650.0,0.87508762]
[1755875703870,0.2100687,116660.0,116650.0,1.12508762]
[1755875704073,0.12435,116660.0,116650.0,1.22297605]
[1755875704375,0.0002,116660.0,116650.0,2.12093605]
[1755875704580,1.8660487,116690.0,116660.0,0.0857187]
[1755875704779,0.559964,116680.0,116670.0,0.34702]
[1755875704979,0.47426,116680.0,116670.0,0.70782]
[1755875705174,0.12415,116680.0,116670.0,1.1363413]
[1755875705385,0.12415,116690.0,116680.0,0.525534]
[1755875705678,0.14333818,116700.0,116690.0,0.33288]
[1755875705877,0.01918818,116700.0,116690.0,1.4079549]
[1755875706075,0.01918818,116700.0,116690.0,1.6579549]
[1755875706272,0.01918818,116700.0,116690.0,1.05063]
[1755875706469,0.12415,116700.0,116690.0,1.05063]
[1755875706674,0.58989184,116720.0,116710.0,0.10695]
[1755875706970,0.75312184,116720.0,116710.0,0.34702]
[1755875707171,0.50830184,116720.0,116710.0,0.34422]
[1755875707576,1.10003014,116720.0,116710.0,0.34422]
[1755875707782,1.23657014,116720.0,116700.0,0.27298]
[1755875707982,1.8934083,116710.0,116690.0,0.60087]
[1755875708178,0.12415,116700.0,116690.0,0.80063]
[1755875708484,1.08077384,116720.0,116690.0,0.80063]
[1755875708485,0.22908914,116720.0,116700.0,0.24007]
[1755875708785,0.1431279,116730.0,116720.0,0.24007]
[1755875708973,0.2287954,116730.0,116720.0,0.43983]
[1755875709178,1.0997337,116730.0,116720.0,0.59702]
[1755875709373,0.5080054,116730.0,116720.0,0.95782]
[1755875709582,0.1431279,116730.0,116720.0,1.05063]
[1755875709789,0.0189779,116730.0,116720.0,1.94863]
[1755875710099,0.14300127,116750.0,116740.0,0.43983]
[1755875710399,0.14300127,116750.0,116740.0,2.05943]
[1755875710400,0.01885127,116750.0,116740.0,2.05943]
[1755875711199,0.22865407,116750.0,116740.0,1.16143]
[1755875712803,0.14600127,116750.0,116740.0,1.41143]
[1755875713003,0.02205127,116750.0,116740.0,1.41143]
[1755875713999,0.02705127,116750.0,116740.0,1.41143]
[1755875714194,0.15120127,116750.0,116740.0,1.41143]
[1755875714898,0.23685397,116750.0,116740.0,1.41143]
[1755875715200,0.67202957,116750.0,116740.0,1.31862]
[1755875715400,0.15120127,116750.0,116740.0,1.41143]
[1755875715593,0.02705127,116750.0,116740.0,1.56589263]
[1755875716193,0.02705127,116750.0,116740.0,2.08672093]
[1755875716396,4e-05,116760.0,116750.0,0.0856529]
[1755875716601,4e-05,116760.0,116750.0,2.3145412]
[1755875716795,4e-05,116760.0,116750.0,2.0437129]
[1755875716992,0.12415,116780.0,116770.0,0.11213]
[1755875717187,0.12415,116780.0,116770.0,1.70119]
[1755875717692,0.0856399,116770.0,116760.0,0.3608]
[1755875717895,1.0787182,116770.0,116760.0,0.71453]
[1755875718299,0.8078899,116770.0,116760.0,0.71453]
[1755875718596,0.8078899,116770.0,116750.0,0.71453]
[1755875718597,0.5578955,116760.0,116750.0,0.71453]
[1755875718897,0.47225,116760.0,116750.0,0.71453]
[1755875719101,0.5578955,116760.0,116750.0,0.71453]
[1755875719690,1.0807238,116760.0,116750.0,0.71453]
[1755875719893,1.0809238,116760.0,116750.0,0.71453]
[1755875720298,0.12143,116760.0,116750.0,0.80435]
[1755875721005,0.2070755,116760.0,116750.0,0.80435]
[1755875721193,0.5600955,116760.0,116750.0,0.71453]
[1755875721399,1.3309238,116760.0,116750.0,0.64433]
[1755875721600,1.3309238,116760.0,116750.0,0.47293]
[1755875721898,0.5579028,116750.0,116740.0,0.54173243]
[1755875722203,1.0789311,116750.0,116740.0,0.71313243]
[1755875722397,1.0789311,116750.0,116740.0,0.35233243]
[1755875722699,1.3297311,116750.0,116740.0,0.06880243]
[1755875722905,0.2007301,116740.0,116730.0,0.3608]
[1755875723202,1.0789384,116740.0,116730.0,0.64433]
[1755875723398,0.9932783,116740.0,116730.0,0.64433]
[1755875723595,0.47245,116740.0,116730.0,0.71453]
[1755875723791,0.11943,116740.0,116730.0,1.1392869]
[1755875724204,0.0002,116740.0,116730.0,1.05362]
[1755875724399,0.11943,116740.0,116730.0,0.80362]
[1755875724599,0.0012,116740.0,116730.0,1.1392869]
[1755875724806,0.0032,116740.0,116730.0,1.1400869]
[1755875725009,0.0032,116740.0,116730.0,1.6609152]
[1755875725310,0.0032,116740.0,116730.0,1.5752483]
[1755875725499,0.0032,116740.0,116730.0,1.05442]
[1755875725700,0.0032,116740.0,116730.0,1.1400868]
[1755875725898,0.11923,116760.0,116740.0,0.3280557]
[1755875726096,0.22359177,116770.0,116760.0,0.44282]
[1755875726300,0.57661177,116770.0,116760.0,0.71453]
[1755875726603,1.09744007,116770.0,116760.0,0.71453]
[1755875726805,0.57661177,116770.0,116760.0,0.78309456]
[1755875727109,1.09744007,116770.0,116760.0,0.54149456]
[1755875727498,1.09744007,116770.0,116760.0,0.06856456]
[1755875727698,1.09744007,116770.0,116750.0,1.42772]
[1755875727898,0.9930783,116760.0,116750.0,1.60973]
[1755875728597,1.078724,116760.0,116750.0,1.60973]
[1755875728798,1.328724,116760.0,116750.0,0.11213]
[1755875729103,0.11923,116750.0,116740.0,0.431]
[1755875729304,0.11923,116750.0,116740.0,0.80362]
[1755875729807,1.0787314,116750.0,116740.0,0.71453]
[1755875729998,1.3287314,116750.0,116740.0,0.47293]
[1755875730203,1.3287314,116750.0,116740.0,0.11213]
[1755875730401,1.3287314,116750.0,116740.0,0.06697275]
[1755875730704,0.5579098,116740.0,116730.0,0.47293]
[1755875730901,1.0789381,116740.0,116730.0,0.11213]
[1755875731101,0.5581098,116740.0,116730.0,0.35373]
[1755875731301,0.11943,116740.0,116730.0,0.80362]
[1755875731507,0.0002,116740.0,116730.0,0.80362]
[1755875731907,0.11943,116740.0,116730.0,0.80362]
[1755875732207,0.39929,116740.0,116730.0,0.71453]
[1755875732401,1.0789379,116740.0,116730.0,0.71453]
[1755875732801,0.47245,116740.0,116730.0,0.64433]
[1755875733009,0.5581097,116740.0,116730.0,1.53877]
[1755875733507,0.5581097,116740.0,116730.0,1.67917629]
[1755875733508,0.9942783,116740.0,116730.0,1.67917629]
[1755875733704,0.40029,116740.0,116730.0,1.76826629]
[1755875733907,0.40029,116740.0,116730.0,1.67917629]
[1755875734101,0.12043,116740.0,116730.0,2.01826629]
[1755875734310,0.0012,116740.0,116730.0,2.10393329]
[1755875734708,0.12043,116740.0,116730.0,2.01826629]
[1755875735308,0.5591096,116740.0,116730.0,1.67901629]
[1755875735605,0.0012,116740.0,116730.0,2.10377319]
[1755875735810,0.0012,116740.0,116730.0,2.01810629]
[1755875736208,0.0012,116740.0,116730.0,2.10377319]
[1755875736509,0.0012,116740.0,116730.0,2.0779778]
[1755875736805,0.0012,116740.0,116730.0,2.1636448]
[1755875738008,0.11923,116760.0,116750.0,0.44282]
[1755875738213,0.11923,116760.0,116750.0,1.7832331]
[1755875738810,0.11923,116760.0,116750.0,1.7832325]
[1755875739007,0.11923,116760.0,116750.0,2.0332325]
[1755875739712,0.12023,116760.0,116750.0,2.3940325]
[1755875740416,0.001,116760.0,116750.0,2.97486648]
[1755875740714,0.01872397,116770.0,116760.0,0.1977753]
[1755875740922,0.01872397,116770.0,116760.0,0.8892653]
[1755875741107,0.01892397,116770.0,116760.0,1.1392653]
[1755875741309,0.0002,116770.0,116760.0,1.1392653]
[1755875742715,0.13249656,116790.0,116780.0,0.11213]
[1755875742916,0.13249656,116790.0,116780.0,0.80362]
[1755875743213,0.93318486,116790.0,116780.0,0.80362]
[1755875743414,0.48551656,116790.0,116780.0,0.80362]
[1755875743715,0.48551656,116790.0,116780.0,0.72542046]
[1755875743716,1.09196906,116790.0,116780.0,0.72542046]
[1755875744116,0.48551656,116790.0,116780.0,0.72542046]
[1755875744319,1.00634486,116790.0,116780.0,0.72542046]
[1755875744509,1.09196906,116790.0,116780.0,0.72542046]
[1755875745222,1.00634486,116790.0,116780.0,0.72542046]
[1755875745714,0.48851656,116790.0,116780.0,0.81451046]
[1755875745920,0.48871656,116790.0,116780.0,0.81451046]
[1755875747417,0.42907656,116790.0,116780.0,0.81097046]
[1755875747717,0.49921656,116790.0,116780.0,0.72542046]
[1755875748018,0.14859656,116790.0,116780.0,0.81097046]
[1755875748207,0.02936656,116790.0,116780.0,0.89660106]
[1755875748412,0.02936656,116790.0,116780.0,1.14660106]
[1755875748612,0.14715656,116790.0,116780.0,1.06097046]
[1755875748815,0.41788656,116790.0,116780.0,1.06097046]
[1755875749019,0.14715656,116790.0,116780.0,1.14660106]
[1755875749605,0.25247656,116790.0,116780.0,1.06097046]
[1755875749822,0.14715656,116790.0,116780.0,1.95337046]
[1755875750015,0.14715656,116790.0,116780.0,2.39980106]
[1755875751713,0.14715656,116790.0,116780.0,2.39944106]
[1755875752122,0.14715656,116790.0,116780.0,2.39940106]
[1755875753018,0.02936656,116790.0,116780.0,2.92022936]
[1755875753516,0.02936656,116790.0,116780.0,2.39940106]
[1755875753725,0.02936656,116790.0,116780.0,2.92022936]
[1755875754218,0.02936656,116790.0,116780.0,2.39940106]
[1755875754613,0.02936656,116790.0,116780.0,2.92022936]
[1755875755615,0.02636656,116790.0,116780.0,2.92022936]
[1755875755818,0.02836656,116790.0,116780.0,2.02822936]
[1755875756117,0.02836656,116790.0,116780.0,2.39888106]
[1755875756324,0.02836656,116790.0,116780.0,2.91970936]
[1755875757914,0.02836656,116790.0,116780.0,2.39888106]
[1755875758115,0.02836656,116790.0,116780.0,2.91970936]
[1755875758311,0.02836656,116790.0,116780.0,2.39888106]
[1755875758525,0.14615656,116790.0,116780.0,1.42177046]
[1755875758729,0.27350656,116790.0,116780.0,1.17177046]
[1755875759025,0.54223656,116790.0,116780.0,2.06285046]
[1755875759220,0.61237656,116790.0,116780.0,2.06285046]
[1755875759620,0.61237656,116790.0,116780.0,2.06685046]
[1755875760225,0.61237656,116790.0,116780.0,1.17577046]
[1755875760426,0.61237656,116790.0,116780.0,1.17477046]
[1755875760627,0.61237656,116790.0,116780.0,1.42577046]
[1755875760929,0.27150656,116790.0,116780.0,2.40228116]
[1755875761115,0.14415656,116790.0,116780.0,2.40228116]
[1755875761527,0.14415656,116790.0,116780.0,2.31665046]
[1755875761820,0.24947656,116790.0,116780.0,1.42577046]
[1755875762026,0.46151656,116790.0,116780.0,2.31661046]
[1755875762223,0.46151656,116790.0,116780.0,2.29106614]
[1755875762224,0.69799996,116790.0,116780.0,2.29106614]
[1755875762422,1.46882826,116790.0,116780.0,1.84802614]
[1755875762627,0.94799996,116790.0,116780.0,1.78802046]
[1755875762821,0.94799996,116790.0,116780.0,1.65559614]
[1755875763015,1.46882826,116790.0,116780.0,1.42722046]
[1755875763228,1.46882826,116790.0,116780.0,1.48718614]
[1755875763418,1.46962826,116790.0,116780.0,0.48441614]
[1755875763620,1.48906189,116790.0,116780.0,0.01189046]
[1755875763825,1.84986189,116790.0,116780.0,0.01189046]
[1755875764121,1.84986189,116790.0,116780.0,0.001]
[1755875764316,0.6724491,116770.0,116760.0,0.06000568]
[1755875764514,1.4269274,116770.0,116760.0,0.07079388]
[1755875764729,1.4261274,116770.0,116760.0,0.07079388]
[1755875764926,0.9052991,116770.0,116760.0,0.07079388]
[1755875765223,1.4261274,116770.0,116760.0,0.0107882]
[1755875765427,0.45886,116770.0,116760.0,0.34852]
[1755875765734,0.9052991,116770.0,116760.0,1.71552732]
[1755875766031,0.11799,116770.0,116760.0,1.80117362]
[1755875766226,0.22331,116770.0,116760.0,1.78649111]
[1755875766426,1.4261273,116770.0,116760.0,0.79772213]
[1755875766616,1.0653273,116770.0,116760.0,0.35044481]
[1755875766925,1.0653273,116770.0,116760.0,0.12207811]
[1755875767320,1.0653273,116770.0,116760.0,0.29044811]
[1755875767520,0.544499,116770.0,116760.0,0.29044811]
[1755875767715,1.4261273,116770.0,116760.0,0.12107811]
[1755875767920,1.6771273,116770.0,116760.0,0.01095811]
[1755875768120,1.6771273,116770.0,116760.0,0.11012]
[1755875768322,1.6771273,116770.0,116760.0,0.12076804]
[1755875768521,1.6761273,116770.0,116760.0,0.01064804]
[1755875768720,1.6761273,116770.0,116760.0,0.17015127]
[1755875768919,0.20684656,116770.0,116760.0,0.78579859]
[1755875769119,0.49307556,116770.0,116760.0,0.88423859]
[1755875769429,0.60282656,116770.0,116760.0,0.97088499]
[1755875769625,0.24202656,116770.0,116760.0,0.88523859]
[1755875769831,0.83837656,116770.0,116760.0,0.78679859]
[1755875770230,0.99840486,116770.0,116760.0,0.78679859]
[1755875770428,0.47757656,116770.0,116760.0,0.78679859]
[1755875770728,0.47757656,116770.0,116760.0,0.79755899]
[1755875770929,0.13670656,116770.0,116760.0,1.34244529]
[1755875771128,0.01891656,116770.0,116760.0,3.01741994]
[1755875771330,0.01891656,116770.0,116760.0,2.04205364]
[1755875771534,0.40743656,116770.0,116760.0,1.52122534]
[1755875771731,0.47757656,116770.0,116760.0,2.05022534]
[1755875771928,0.83837656,116770.0,116760.0,1.06198534]
[1755875772130,0.83837656,116770.0,116760.0,1.95178534]
[1755875772437,0.20684656,116770.0,116760.0,2.13587164]
[1755875772731,0.13670656,116770.0,116760.0,2.41182534]
[1755875773037,0.01891656,116770.0,116760.0,3.01829994]
[1755875773245,0.01891656,116770.0,116760.0,2.94384232]
[1755875773731,0.16339019,116790.0,116780.0,0.5201317]
[1755875773935,0.01941757,116800.0,116790.0,0.45828]
[1755875774138,0.01941757,116800.0,116790.0,0.58692858]
[1755875774334,0.90061684,116810.0,116800.0,0.22971]
[1755875774335,1.01546684,116810.0,116800.0,0.22971]
[1755875774635,1.10107534,116810.0,116800.0,0.45828]
[1755875775030,1.10107534,116810.0,116800.0,0.33606]
[1755875775234,0.2004663,116800.0,116790.0,0.23499858]
[1755875775431,1.0820946,116800.0,116790.0,0.23499858]
[1755875775839,1.6145246,116800.0,116790.0,0.23499858]
[1755875776942,2.5040046,116800.0,116790.0,0.12864858]
[1755875777145,2.5040046,116800.0,116790.0,0.06862229]
[1755875777338,0.0856236,116790.0,116780.0,0.52717629]
[1755875777541,1.0024119,116790.0,116780.0,0.52717629]
[1755875777841,1.3632119,116790.0,116780.0,0.16637629]
[1755875778042,1.38245468,116790.0,116780.0,0.06002629]
[1755875778232,1.63245468,116790.0,116780.0,0.06002629]
[1755875779035,1.54683108,116790.0,116780.0,0.32705629]
[1755875779231,0.31627278,116790.0,116780.0,0.5505301]
[1755875779437,0.01004278,116790.0,116780.0,0.5505301]
[1755875779633,1.01245388,116790.0,116780.0,0.7149]
[1755875779838,1.37325388,116790.0,116780.0,1.28978285]
[1755875780038,1.37325388,116790.0,116780.0,0.40066285]
[1755875780634,1.62325388,116790.0,116780.0,0.06104285]
[1755875781158,1.62325388,116790.0,116780.0,0.16739285]
[1755875781461,1.62325388,116790.0,116780.0,0.06304285]
[1755875781862,1.62325388,116790.0,116780.0,0.003]
[1755875782165,1.62325388,116790.0,116780.0,0.002]
[1755875782461,1.10242558,116790.0,116780.0,0.26903]
[1755875782667,1.10242558,116790.0,116780.0,0.4669]
[1755875783165,0.85242558,116790.0,116780.0,0.4659]
[1755875783367,0.40600278,116790.0,116780.0,0.52597019]
[1755875783666,0.12498278,116790.0,116780.0,0.52597019]
[1755875783851,0.01004278,116790.0,116780.0,2.02461019]
[1755875784057,0.01004278,116790.0,116780.0,1.96454]
[1755875784259,0.01004278,116790.0,116780.0,2.5709989]
[1755875784664,0.01004278,116790.0,116780.0,1.96454]
[1755875784968,0.01004278,116790.0,116780.0,1.96554]
[1755875785161,0.01004278,116790.0,116780.0,2.0521705]
[1755875785363,0.01004278,116790.0,116780.0,2.0511705]
[1755875785561,0.01004278,116790.0,116780.0,2.0531705]
[1755875786165,0.01004278,116790.0,116780.0,2.12820431]
[1755875786670,0.01004278,116790.0,116780.0,2.64903261]
[1755875786879,0.01004278,116790.0,116780.0,2.5739988]
[1755875787669,0.01004278,116790.0,116780.0,2.5747988]
[1755875787870,0.01004278,116790.0,116780.0,2.5739988]
[1755875788071,0.01004278,116790.0,116780.0,1.71754]
[1755875788264,0.12498278,116790.0,116780.0,0.95568]
[1755875788466,0.01004278,116790.0,116780.0,1.8442]
[1755875788674,0.01004278,116790.0,116780.0,1.9297915]
[1755875788875,0.12498278,116790.0,116780.0,1.84412]
[1755875789065,0.52911278,116790.0,116780.0,1.84412]
[1755875790173,0.52911278,116790.0,116780.0,1.84408]
[1755875790368,0.20005278,116790.0,116780.0,1.84408]
[1755875790868,0.46225278,116790.0,116780.0,1.84408]
[1755875791072,0.52911278,116790.0,116780.0,1.84408]
[1755875791270,0.52911278,116790.0,116780.0,1.9297115]
[1755875791472,0.46225278,116790.0,116780.0,1.84408]
[1755875791669,0.24847278,116790.0,116780.0,1.84408]
[1755875791874,0.01004278,116790.0,116780.0,1.84408]
[1755875792367,0.12498278,116790.0,116780.0,1.91911381]
[1755875792568,0.01004278,116790.0,116780.0,2.52557271]
[1755875792767,0.01004278,116790.0,116780.0,2.4505389]
[1755875793670,0.01004278,116790.0,116780.0,1.84376]
[1755875793874,0.12498278,116790.0,116780.0,1.84376]
[1755875794071,0.01004278,116790.0,116780.0,1.84372]
[1755875794569,0.01004278,116790.0,116780.0,1.9293515]
[1755875795068,0.01004278,116790.0,116780.0,1.84372]
[1755875795769,0.01004278,116790.0,116780.0,1.9293504]
[1755875795974,0.01004278,116790.0,116780.0,2.4501787]
[1755875796172,0.01004278,116790.0,116780.0,1.9293504]
[1755875796367,0.20899854,116810.0,116800.0,0.6774957]
[1755875796567,0.11494,116820.0,116810.0,0.35855]
[1755875796776,0.6046675,116830.0,116820.0,0.59188]
[1755875796972,0.51907,116830.0,116820.0,1.47968]
[1755875797175,0.2756039,116830.0,116820.0,1.47968]
[1755875797578,0.19001,116830.0,116820.0,1.5652812]
[1755875797771,0.25,116830.0,116820.0,2.38095145]
[1755875798273,0.11494,116840.0,116830.0,0.4649]
[1755875798473,0.2005266,116840.0,116830.0,0.8257]
[1755875798773,0.3355866,116840.0,116830.0,1.35483]
[1755875798975,0.4505266,116840.0,116830.0,0.99403]
[1755875799176,1.2519949,116840.0,116830.0,0.99391]
[1755875799473,1.2519949,116840.0,116830.0,1.35246]
[1755875799671,0.4505266,116840.0,116830.0,1.35246]
[1755875800175,0.36494,116840.0,116830.0,1.71326]
[1755875800376,1.2559948,116840.0,116830.0,0.30422]
[1755875800676,0.4811739,116830.0,116820.0,0.17994]
[1755875800872,1.0020022,116830.0,116820.0,0.4649]
[1755875801072,0.5663296,116840.0,116820.0,0.10635]
[1755875801277,0.5663296,116840.0,116830.0,1.24599]
[1755875801478,1.3677979,116840.0,116830.0,1.24599]
[1755875801872,1.3677979,116840.0,116830.0,0.35855]
[1755875802182,1.3677979,116840.0,116830.0,0.4649]
[1755875802382,0.4811739,116830.0,116820.0,0.48429824]
[1755875802681,1.0020022,116830.0,116820.0,0.48429824]
[1755875803178,1.2530022,116830.0,116820.0,0.48429824]
[1755875803481,1.2560022,116830.0,116820.0,0.48429824]
[1755875803681,1.0060022,116830.0,116820.0,0.48429824]
[1755875803876,0.7253622,116830.0,116820.0,0.48429824]
[1755875804380,0.8242922,116830.0,116820.0,0.48429824]
[1755875804776,1.0045322,116830.0,116820.0,0.48429824]
[1755875804981,1.0045322,116830.0,116820.0,1.37149824]
[1755875805482,1.2545322,116830.0,116820.0,0.48429824]
[1755875805678,1.27348208,116830.0,116820.0,0.17199824]
[1755875806379,1.39697208,116830.0,116820.0,0.61062824]
[1755875806576,0.79054988,116830.0,116820.0,1.05702944]
[1755875806780,0.02294988,116830.0,116820.0,0.97142824]
[1755875806988,0.02294988,116830.0,116820.0,0.93004944]
[1755875807281,0.02294988,116830.0,116820.0,0.84444824]
[1755875807581,0.02294988,116830.0,116820.0,1.73140824]
[1755875808073,0.74492208,116830.0,116820.0,1.09444824]
[1755875808279,1.02215208,116830.0,116820.0,1.09464824]
[1755875808483,0.83762818,116830.0,116820.0,1.98148824]
[1755875808667,0.65952818,116830.0,116820.0,1.98148824]
[1755875808981,1.02215208,116830.0,116820.0,1.98148824]
[1755875809276,0.65952818,116830.0,116820.0,1.98148824]
[1755875809480,0.02314988,116830.0,116820.0,1.98148824]
[1755875810573,0.10874378,116830.0,116820.0,1.98148824]
[1755875810774,0.10874378,116830.0,116820.0,1.98136824]
[1755875810775,0.74512208,116830.0,116820.0,1.98136824]
[1755875810974,0.92521208,116830.0,116820.0,1.98128824]
[1755875811186,0.87102208,116830.0,116820.0,1.98128824]
[1755875811984,0.82628208,116830.0,116820.0,1.98128824]
[1755875812284,0.74068818,116830.0,116820.0,1.98128824]
[1755875812773,0.7217383,116830.0,116820.0,1.98128824]
[1755875812978,0.0042,116830.0,116820.0,2.06768944]
[1755875813170,6.3202033,116850.0,116840.0,0.42231]
[1755875813374,6.4880533,116850.0,116840.0,0.58234]
[1755875813978,6.7380533,116850.0,116840.0,0.58234]
[1755875814374,6.217225,116850.0,116840.0,0.58234]
[1755875814585,6.7380533,116850.0,116840.0,0.58234]
[1755875814886,6.7420533,116850.0,116840.0,0.58234]
[1755875815080,5.6022447,116850.0,116840.0,1.7187]
[1755875815383,5.6022447,116850.0,116840.0,2.0795]
[1755875815579,5.6878239,116850.0,116840.0,1.7187]
[1755875815775,5.8033739,116850.0,116840.0,1.7187]
[1755875815978,5.9065039,116850.0,116840.0,1.7187]
[1755875816180,5.9712239,116850.0,116840.0,1.4687]
[1755875816379,6.4922522,116850.0,116840.0,0.58234]
[1755875817782,6.7422522,116850.0,116840.0,0.58234]
[1755875817984,6.1142939,116850.0,116840.0,0.58234]
[1755875818186,6.1152939,116850.0,116840.0,0.58234]
[1755875818384,6.2184239,116850.0,116840.0,0.58234]
[1755875818585,6.1152939,116850.0,116840.0,0.58234]
[1755875818788,6.1328447,116850.0,116840.0,0.58234]
[1755875818989,6.0681247,116850.0,116840.0,0.58234]
[1755875819289,5.9649947,116850.0,116840.0,0.58234]
[1755875820482,6.153704,116850.0,116840.0,0.58234]
[1755875820789,6.0297147,116850.0,116840.0,0.58234]
[1755875820982,5.9649947,116850.0,116840.0,0.58234]
[1755875821290,5.9649947,116850.0,116840.0,0.94314]
[1755875821693,5.5994447,116850.0,116840.0,1.2787267]
[1755875821892,5.5994447,116850.0,116840.0,1.19314]
[1755875822388,5.5994447,116850.0,116840.0,1.2787267]
[1755875822786,5.7149947,116850.0,116840.0,1.2787267]
[1755875823984,5.5994447,116850.0,116840.0,1.2787267]
[1755875824384,5.5994447,116850.0,116840.0,1.799555]
[1755875824586,5.5994447,116850.0,116840.0,1.7139683]
[1755875824886,5.7149947,116850.0,116840.0,1.19314]
[1755875825088,5.8828447,116850.0,116840.0,1.82874]
[1755875825388,5.8818447,116850.0,116840.0,1.9142467]
[1755875825690,5.8818447,116850.0,116840.0,1.0287267]
[1755875825992,5.8818447,116850.0,116840.0,0.94314]
[1755875826196,5.8818447,116850.0,116840.0,1.82862]
[1755875826388,5.8818447,116850.0,116840.0,0.7564367]
[1755875826597,5.8818447,116850.0,116840.0,1.9141267]
[1755875827080,5.7139947,116850.0,116840.0,2.684955]
[1755875827285,5.8818447,116850.0,116840.0,2.1641267]
[1755875827487,5.7139947,116850.0,116840.0,2.1641267]
[1755875827895,5.5984447,116850.0,116840.0,2.684955]
[1755875829180,5.5984447,116850.0,116840.0,2.685755]
[1755875829483,5.5984447,116850.0,116840.0,2.684955]
[1755875830079,5.5984447,116850.0,116840.0,2.75998881]
[1755875830489,5.5984447,116850.0,116840.0,2.684955]
[1755875830690,5.58694823,116850.0,116840.0,2.684955]
[1755875830881,5.58694823,116850.0,116840.0,2.75998881]
[1755875832292,5.56080823,116850.0,116840.0,2.75998881]
[1755875833091,5.22170532,116850.0,116840.0,2.76078881]
[1755875833286,5.22170532,116850.0,116840.0,2.75998881]
[1755875833686,5.19550532,116850.0,116840.0,2.76038881]
[1755875833890,5.47890532,116850.0,116840.0,1.82949051]
[1755875834087,5.47890532,116850.0,116840.0,2.23900051]
[1755875834693,5.47890532,116850.0,116840.0,2.75982881]
[1755875835295,5.47890532,116850.0,116840.0,1.800035]
[1755875835496,5.47890532,116850.0,116840.0,2.75966881]
[1755875835696,5.47890532,116850.0,116840.0,2.684635]
[1755875835894,5.47890532,116850.0,116840.0,1.2792067]
[1755875836091,5.47890532,116850.0,116840.0,2.5990083]
[1755875836297,5.47890532,116850.0,116840.0,1.7144483]
[1755875836494,5.47970532,116850.0,116840.0,0.60197]
[1755875836791,5.47890532,116850.0,116840.0,1.48190381]
[1755875837003,5.47890532,116850.0,116840.0,1.72700041]
[1755875837296,5.47890532,116850.0,116840.0,1.79424041]
[1755875837902,5.47890532,116850.0,116840.0,1.90973041]
[1755875838094,5.47890532,116850.0,116840.0,2.68055871]
[1755875838287,5.31105532,116850.0,116840.0,2.6055249]
[1755875838891,5.31105532,116850.0,116840.0,2.68055871]
[1755875839292,5.37535532,116850.0,116840.0,2.68055871]
[1755875839498,5.47848532,116850.0,116840.0,2.68055871]
[1755875840101,5.47848532,116850.0,116840.0,2.15973041]
[1755875840989,5.37535532,116850.0,116840.0,2.15973041]
[1755875841201,5.47848532,116850.0,116840.0,2.15973041]
[1755875841392,5.37535532,116850.0,116840.0,2.68055871]
[1755875841594,5.47848532,116850.0,116840.0,2.68055871]
[1755875841996,5.31105532,116850.0,116840.0,2.68055871]
[1755875842501,5.19550532,116850.0,116840.0,2.68055871]
[1755875842698,5.31761532,116850.0,116840.0,2.68055871]
[1755875842900,5.48462532,116850.0,116840.0,2.68055871]
[1755875843600,5.31761532,116850.0,116840.0,2.6055249]
[1755875844105,5.48462532,116850.0,116840.0,2.6055249]
[1755875844605,5.19550532,116850.0,116840.0,2.6055249]
[1755875845094,5.18031532,116850.0,116840.0,2.68550937]
[1755875845294,5.30242532,116850.0,116840.0,2.6105249]
[1755875845503,4.98009532,116850.0,116840.0,2.6175249]
[1755875845699,4.98009532,116850.0,116840.0,2.69251034]
[1755875846100,4.98009532,116850.0,116840.0,2.68451034]
[1755875846300,4.72025603,116850.0,116840.0,2.69331034]